fUST/lending_fUST_20250423
["ID","MTS","AMOUNT","RATE_DAILY","PERIOD"]
[358723988,1745403056631,-500.0,0.00020753,2]
[358723989,1745403056640,-500.0,0.00020753,2]
[358723990,1745403056650,-500.0,0.00020753,2]
[358723991,1745403056661,-500.0,0.00020753,2]
[358723992,1745403056671,-500.0,0.00020753,2]
[358723993,1745403056680,-500.0,0.00020753,2]
[358723994,1745403056691,-500.0,0.00020753,2]
[358723995,1745403056700,-500.0,0.00020753,2]
[358723996,1745403056711,-500.0,0.00020753,2]
[358723997,1745403056721,-346.36873346,0.00020753,2]
[358723998,1745403056731,-500.0,0.00020753,2]
[358723999,1745403056741,-624.72,0.00020753,2]
[358724000,1745403056751,-500.0,0.00020753,2]
[358724001,1745403056760,-500.0,0.00020753,2]
[358724002,1745403056770,-500.0,0.00020753,2]
[358724003,1745403056780,-500.0,0.00020753,2]
[358724004,1745403056790,-411.81823306,0.00020753,2]
[358724005,1745403056800,-500.0,0.00020753,2]
[358724006,1745403056809,-500.0,0.00020753,2]
[358724007,1745403056820,-305.02236703,0.00020753,2]
[358724008,1745403056833,-500.0,0.00020753,2]
[358724009,1745403056842,-500.0,0.00020753,2]
[358724010,1745403056853,-500.0,0.00020753,2]
[358724011,1745403056863,-500.0,0.00020753,2]
[358724012,1745403056873,-500.0,0.00020753,2]
[358724013,1745403056883,-500.0,0.00020753,2]
[358724014,1745403056893,-500.0,0.00020753,2]
[358724015,1745403056903,-458.25490234,0.00020753,2]
[358724016,1745403056913,-500.0,0.00020753,2]
[358724017,1745403056923,-426.78389064,0.00020753,2]
[358724018,1745403056933,-500.0,0.00020753,2]
[358724019,1745403056943,-500.0,0.00020753,2]
[358724020,1745403056953,-265.95016161,0.00020753,2]
[358724021,1745403056964,-3144.14,0.00020753,2]
[358724022,1745403056973,-500.0,0.00020753,2]
[358724023,1745403056984,-500.0,0.00020753,2]
[358724024,1745403056994,-500.0,0.00020753,2]
[358724025,1745403057004,-500.0,0.00020753,2]
[358724026,1745403057014,-500.0,0.00020753,2]
[358724027,1745403057024,-500.0,0.00020753,2]
[358724028,1745403057034,-500.0,0.00020753,2]
[358724029,1745403057047,-2273.01,0.00020753,2]
[358724030,1745403057058,-500.0,0.00020753,2]
[358724031,1745403057068,-500.0,0.00020753,2]
[358724032,1745403057079,-500.0,0.00020753,2]
[358724033,1745403057089,-500.0,0.00020753,2]
[358724034,1745403057098,-529.90817832,0.00020753,2]
[358724035,1745403057108,-500.0,0.00020753,2]
[358724036,1745403057118,-151.0,0.00020753,2]
[358724037,1745403057128,-500.0,0.00020753,2]
[358724038,1745403057138,-500.0,0.00020753,2]
[358724039,1745403057148,-500.0,0.00020753,2]
[358724040,1745403057158,-613.49,0.00020753,2]
[358724041,1745403057168,-500.0,0.00020753,2]
[358724042,1745403057178,-874.61,0.00020753,2]
[358724043,1745403057188,-500.0,0.00020753,2]
[358724044,1745403057198,-500.0,0.00020753,2]
[358724045,1745403057209,-656.52,0.00020753,2]
[358724046,1745403057221,-153.49603804,0.00020753,2]
[358724047,1745403057231,-500.0,0.00020753,2]
[358724048,1745403057241,-500.0,0.00020753,2]
[358724049,1745403057251,-500.0,0.00020753,2]
[358724050,1745403057261,-500.0,0.00020753,2]
[358724051,1745403057271,-151.0,0.00020753,2]
[358724052,1745403057280,-526.63,0.00020753,2]
[358724053,1745403057290,-1958.53,0.00020753,2]
[358724054,1745403057300,-628.59,0.00020753,2]
[358724055,1745403057310,-500.0,0.00020753,2]
[358724056,1745403057320,-626.92,0.00020753,2]
[358724057,1745403057330,-500.0,0.00020753,2]
[358724058,1745403057341,-500.0,0.00020753,2]
[358724059,1745403057351,-500.0,0.00020753,2]
[358724060,1745403057361,-500.0,0.00020753,2]
[358724061,1745403057371,-455.41064729,0.00020753,2]
[358724062,1745403057381,-500.0,0.00020753,2]
[358724063,1745403057391,-500.0,0.00020753,2]
[358724064,1745403057401,-500.0,0.00020753,2]
[358724065,1745403057411,-500.0,0.00020753,2]
[358724066,1745403057421,-500.0,0.00020753,2]
[358724067,1745403057432,-500.0,0.00020754,2]
[358724068,1745403057445,-500.0,0.00020756,2]
[358724069,1745403057457,-2246.0,0.00020766,2]
[358724070,1745403057469,-403.0,0.00020776,2]
[358724071,1745403057480,-403.0,0.00020776,2]
[358724072,1745403057491,-317.0,0.000208,2]
[358724073,1745403057501,-500.0,0.00020854,2]
[358724074,1745403057511,-500.0,0.00020854,2]
[358724075,1745403057521,-2253.75,0.00020854,2]
[358724076,1745403057532,-585.13264719,0.00020854,2]
[358724077,1745403057542,-517.89,0.00020854,2]
[358724078,1745403057554,-500.0,0.00020854,2]
[358724079,1745403057816,-2458.84,0.00020854,2]
[358724080,1745403057828,-4774.56,0.00020854,2]
[358724081,1745403057839,-5737.28,0.00020854,2]
[358724082,1745403057850,-500.0,0.00020856,2]
[358724083,1745403057861,-500.0,0.00020856,2]
[358724084,1745403057872,-500.0,0.00020856,2]
[358724085,1745403057883,-568.92,0.00020856,2]
[358724086,1745403057893,-500.0,0.00020856,2]
[358724087,1745403057903,-500.0,0.00020856,2]
[358724088,1745403057914,-500.0,0.00020856,2]
[358724089,1745403057924,-500.0,0.00020856,2]
[358724090,1745403057933,-500.0,0.00020856,2]
[358724091,1745403057943,-500.0,0.00020856,2]
[358724092,1745403057953,-651.56,0.00020856,2]
[358724093,1745403057963,-500.0,0.00020856,2]
[358724094,1745403057976,-500.0,0.00020856,2]
[358724095,1745403057986,-500.0,0.00020856,2]
[358724096,1745403057996,-500.0,0.00020856,2]
[358724097,1745403058006,-500.0,0.00020856,2]
[358724098,1745403058015,-500.0,0.00020856,2]
[358724099,1745403058025,-500.0,0.00020856,2]
[358724100,1745403058035,-566.38,0.00020856,2]
[358724101,1745403058044,-500.0,0.00020856,2]
[358724102,1745403058056,-567.46966163,0.00020856,2]
[358724103,1745403058066,-500.0,0.00020856,2]
[358724104,1745403058075,-683.18,0.00020856,2]
[358724105,1745403058085,-500.0,0.00020856,2]
[358724106,1745403058094,-500.0,0.00020856,2]
[358724107,1745403058104,-151.0,0.000209,4]
[358724108,1745403058114,-250.648,0.00020955,2]
[358724109,1745403058125,-166.857,0.00020955,2]
[358724110,1745403058135,-151.315,0.00020955,2]
[358724111,1745403058145,-213.046,0.00020955,2]
[358724112,1745403058155,-544.0,0.00020955,2]
[358724113,1745403058164,-706.0,0.00020955,2]
[358724114,1745403058174,-219.140886,0.00020964,2]
[358724115,1745403058184,-219.140886,0.00020964,2]
[358724116,1745403058194,-500.9596923,0.00020973,2]
[358724117,1745403058204,-500.0,0.00020973,2]
[358724118,1745403058214,-500.0,0.00020973,2]
[358724119,1745403058226,-500.0,0.00020973,2]
[358724120,1745403058236,-500.0,0.00020973,2]
[358724121,1745403058246,-500.0,0.00020973,2]
[358724122,1745403058256,-300.0,0.00020973,2]
[358724123,1745403058266,-500.0,0.00020973,2]
[358724124,1745403058275,-500.0,0.00020973,2]
[358724125,1745403058284,-500.0,0.00020973,2]
[358724126,1745403058294,-500.0,0.00020973,2]
[358724127,1745403058305,-500.0,0.00020973,2]
[358724128,1745403058314,-500.0,0.00020973,2]
[358724129,1745403058324,-246894.83572382,0.00020999,2]
[358724130,1745403058558,-354902.39437618,0.00020999,2]
[358724131,1745403058569,-501.13790687,0.00021,2]
[358724132,1745403058579,-500.0,0.00021,2]
[358724133,1745403058588,-500.0,0.00021,2]
[358724134,1745403058598,-500.0,0.00021,2]
[358724135,1745403058607,-1500.0,0.00021,2]
[358724136,1745403058616,-500.0,0.00021,2]
[358724137,1745403058626,-1500.0,0.00021,2]
[358724138,1745403058636,-922.30511079,0.00021,2]
[358724139,1745403058645,-1500.0,0.00021,2]
[358724140,1745403058655,-1500.0,0.00021,2]
[358724141,1745403058665,-1500.0,0.00021,2]
[358724142,1745403058674,-1500.0,0.00021,2]
[358724143,1745403058684,-1500.0,0.00021,2]
[358724144,1745403058694,-1500.0,0.00021,2]
[358724145,1745403058703,-1500.0,0.00021,2]
[358724146,1745403058713,-936.60700215,0.00021,2]
[358724147,1745403058724,-1500.0,0.00021,2]
[358724148,1745403058734,-500.0,0.00021,2]
[358724149,1745403058743,-1500.0,0.00021,2]
[358724150,1745403058753,-500.0,0.00021,2]
[358724151,1745403058763,-1500.0,0.00021,2]
[358724152,1745403058772,-500.0,0.00021,2]
[358724153,1745403058782,-1500.0,0.00021,2]
[358724154,1745403058799,-2271.51774151,0.00021,2]
[358724155,1745403058808,-500.0,0.00021,2]
[358724156,1745403058818,-500.0,0.00021,2]
[358724157,1745403058828,-500.0,0.00021,2]
[358724158,1745403058838,-500.0,0.00021,2]
[358724159,1745403058847,-500.0,0.00021,2]
[358724160,1745403058857,-500.0,0.00021,2]
[358724161,1745403058867,-500.0,0.00021,2]
[358724162,1745403058877,-500.0,0.00021,2]
[358724163,1745403058887,-500.0,0.00021,2]
[358724164,1745403058896,-500.0,0.00021,2]
[358724165,1745403058906,-786.60163364,0.00021,2]
[358724166,1745403058916,-500.0,0.00021,2]
[358724167,1745403058926,-500.0,0.00021,2]
[358724168,1745403058935,-500.0,0.00021,2]
[358724169,1745403058946,-500.0,0.00021,2]
[358724170,1745403058955,-500.0,0.00021,2]
[358724171,1745403058966,-902.99629329,0.00021,2]
[358724172,1745403058976,-1200.0,0.00021,2]
[358724173,1745403058985,-1200.0,0.00021,2]
[358724174,1745403058995,-1200.0,0.00021,2]
[358724175,1745403059004,-1200.0,0.00021,2]
[358724176,1745403059013,-1200.0,0.00021,2]
[358724177,1745403059023,-1200.0,0.00021,2]
[358724178,1745403059032,-1200.0,0.00021,2]
[358724179,1745403059045,-1200.0,0.00021,2]
[358724180,1745403059054,-1200.0,0.00021,2]
[358724181,1745403059063,-1200.0,0.00021,2]
[358724182,1745403059072,-1200.0,0.00021,2]
[358724183,1745403059084,-1200.0,0.00021,2]
[358724184,1745403059093,-1200.0,0.00021,2]
[358724185,1745403059102,-1330.4165194,0.00021,2]
[358724186,1745403059111,-151.0,0.00021,3]
[358724187,1745403059122,-8316.095595,0.00021,3]
[358724188,1745403059132,-515.43856953,0.00021005,2]
[358724189,1745403059141,-151.0,0.00021014,2]
[358724190,1745403059151,-500.0,0.00021022,2]
[358724191,1745403059160,-509.72,0.00021023,2]
[358724192,1745403059169,-211.39596897,0.00021023,2]
[358724193,1745403059179,-835.53,0.00021023,2]
[358724194,1745403059188,-2593.26,0.00021023,2]
[358724195,1745403059198,-507.1477998,0.00021023,2]
[358724196,1745403059207,-500.0,0.00021023,2]
[358724197,1745403059217,-8207.28,0.00021023,2]
[358724198,1745403059226,-10366.63,0.00021023,2]
[358724199,1745403059235,-500.0,0.00021023,2]
[358724200,1745403059245,-500.0,0.00021023,2]
[358724201,1745403059255,-500.0,0.00021023,2]
[358724202,1745403059264,-4233.86,0.00021023,2]
[358724203,1745403059274,-500.0,0.00021023,2]
[358724204,1745403059283,-500.0,0.00021023,2]
[358724205,1745403059292,-751.13,0.00021023,2]
[358724206,1745403059302,-500.0,0.00021023,2]
[358724207,1745403059312,-500.0,0.00021023,2]
[358724208,1745403059321,-500.0,0.00021023,2]
[358724209,1745403059331,-500.0,0.00021023,2]
[358724210,1745403059341,-745.29,0.00021023,2]
[358724211,1745403059350,-565.1,0.00021026,2]
[358724212,1745403059360,-1088.04,0.00021026,2]
[358724213,1745403059369,-1553.74,0.00021026,2]
[358724214,1745403059378,-612.09,0.00021026,2]
[358724215,1745403059387,-562.58,0.00021026,2]
[358724216,1745403059396,-1393.65,0.00021026,2]
[358724217,1745403059406,-500.0,0.00021026,2]
[358724218,1745403059415,-500.0,0.00021026,2]
[358724219,1745403059425,-783.91,0.00021026,2]
[358724220,1745403059434,-598.03,0.00021026,2]
[358724221,1745403059444,-537.24,0.00021026,2]
[358724222,1745403059454,-822.07,0.00021026,2]
[358724223,1745403059467,-500.0,0.00021026,2]
[358724224,1745403059479,-524.38,0.00021026,2]
[358724225,1745403059490,-500.0,0.00021026,2]
[358724226,1745403059501,-3841.56,0.00021026,2]
[358724227,1745403059518,-500.0,0.00021026,2]
[358724228,1745403059532,-500.0,0.00021026,2]
[358724229,1745403059542,-618.1,0.00021026,2]
[358724230,1745403059552,-500.0,0.00021027,2]
[358724231,1745403059562,-500.0,0.00021027,2]
[358724232,1745403059572,-500.0,0.00021027,2]
[358724233,1745403059582,-500.0,0.00021027,2]
[358724234,1745403059592,-500.0,0.00021027,2]
[358724235,1745403059602,-500.0,0.00021027,2]
[358724236,1745403059611,-257.95921779,0.00021027,2]
[358724237,1745403059621,-500.0,0.00021027,2]
[358724238,1745403059630,-656.41,0.00021027,2]
[358724239,1745403059639,-734.03,0.00021027,2]
[358724240,1745403059648,-500.0,0.00021027,2]
[358724241,1745403059658,-500.0,0.00021027,2]
[358724242,1745403059670,-500.0,0.00021027,2]
[358724243,1745403059680,-500.0,0.00021027,2]
[358724244,1745403059690,-214.07486944,0.00021027,2]
[358724245,1745403059699,-500.0,0.00021027,2]
[358724246,1745403059709,-682.6,0.00021027,2]
[358724247,1745403059720,-500.0,0.00021027,2]
[358724248,1745403059730,-500.0,0.00021027,2]
[358724249,1745403059740,-727.39,0.00021027,2]
[358724250,1745403059750,-686.67,0.00021027,2]
[358724251,1745403059759,-759.45,0.00021027,2]
[358724252,1745403059769,-797.43,0.00021027,2]
[358724253,1745403059778,-500.0,0.00021027,2]
[358724254,1745403059787,-500.0,0.00021027,2]
[358724255,1745403059798,-593.54,0.00021027,2]
[358724256,1745403059807,-500.0,0.00021027,2]
[358724257,1745403059817,-500.0,0.00021027,2]
[358724258,1745403059827,-500.0,0.00021027,2]
[358724259,1745403059836,-500.0,0.00021027,2]
[358724260,1745403059845,-453.49153094,0.00021027,2]
[358724261,1745403059854,-628.39853355,0.00021027,2]
[358724262,1745403059864,-500.0,0.00021027,2]
[358724263,1745403059873,-382.50345081,0.00021027,2]
[358724264,1745403059883,-500.0,0.00021027,2]
[358724265,1745403059893,-351.86173345,0.00021027,2]
[358724266,1745403059902,-500.0,0.00021027,2]
[358724267,1745403059911,-521.71898308,0.00021027,2]
[358724268,1745403059921,-500.0,0.00021027,2]
[358724269,1745403059930,-500.0,0.00021027,2]
[358724270,1745403059940,-500.0,0.00021027,2]
[358724271,1745403059950,-500.0,0.00021027,2]
[358724272,1745403059960,-500.0,0.00021027,2]
[358724273,1745403059971,-624.72,0.00021027,2]
[358724274,1745403059980,-500.0,0.00021027,2]
[358724275,1745403059990,-500.0,0.00021027,2]
[358724276,1745403060000,-500.0,0.00021027,2]
[358724277,1745403060010,-500.0,0.00021027,2]
[358724278,1745403060020,-500.0,0.00021027,2]
[358724279,1745403060030,-391.63336648,0.00021027,2]
[358724280,1745403060041,-500.0,0.00021027,2]
[358724281,1745403060051,-500.0,0.00021027,2]
[358724282,1745403060064,-500.0,0.00021027,2]
[358724283,1745403060074,-500.0,0.00021027,2]
[358724284,1745403060136,-500.0,0.00021027,2]
[358724285,1745403060146,-500.0,0.00021027,2]
[358724286,1745403060156,-500.0,0.00021027,2]
[358724287,1745403060165,-500.0,0.00021027,2]
[358724288,1745403060176,-500.0,0.00021027,2]
[358724289,1745403060186,-3144.14,0.00021027,2]
[358724290,1745403060195,-500.0,0.00021027,2]
[358724291,1745403060204,-500.0,0.00021027,2]
[358724292,1745403060213,-500.0,0.00021027,2]
[358724293,1745403060224,-500.0,0.00021027,2]
[358724294,1745403060233,-500.0,0.00021027,2]
[358724295,1745403060243,-500.0,0.00021027,2]
[358724296,1745403060252,-500.0,0.00021027,2]
[358724297,1745403060261,-2273.01,0.00021027,2]
[358724298,1745403060271,-500.0,0.00021027,2]
[358724299,1745403060282,-500.0,0.00021027,2]
[358724300,1745403060291,-500.0,0.00021027,2]
[358724301,1745403060300,-383.11566844,0.00021027,2]
[358724302,1745403060310,-500.0,0.00021027,2]
[358724303,1745403060320,-500.0,0.00021027,2]
[358724304,1745403060329,-500.0,0.00021027,2]
[358724305,1745403060338,-613.49,0.00021027,2]
[358724306,1745403060348,-500.0,0.00021027,2]
[358724307,1745403060357,-874.61,0.00021027,2]
[358724308,1745403060366,-500.0,0.00021027,2]
[358724309,1745403060376,-500.0,0.00021027,2]
[358724310,1745403060385,-656.52,0.00021027,2]
[358724311,1745403060395,-500.0,0.00021027,2]
[358724312,1745403060404,-500.0,0.00021027,2]
[358724313,1745403060413,-500.0,0.00021027,2]
[358724314,1745403060422,-500.0,0.00021027,2]
[358724315,1745403060431,-526.63,0.00021027,2]
[358724316,1745403060440,-1958.53,0.00021027,2]
[358724317,1745403060450,-628.59,0.00021027,2]
[358724318,1745403060459,-527.77939059,0.00021027,2]
[358724319,1745403060470,-626.92,0.00021027,2]
[358724320,1745403060479,-500.0,0.00021027,2]
[358724321,1745403060489,-500.0,0.00021027,2]
[358724322,1745403060499,-500.0,0.00021027,2]
[358724323,1745403060511,-500.0,0.00021027,2]
[358724324,1745403060521,-500.0,0.00021027,2]
[358724325,1745403060531,-500.0,0.00021027,2]
[358724326,1745403060540,-500.0,0.00021027,2]
[358724327,1745403060550,-500.0,0.00021027,2]
[358724328,1745403060559,-500.0,0.00021027,2]
[358724329,1745403060569,-500.0,0.00021028,2]
[358724330,1745403060578,-151.0,0.00021028,2]
[358724331,1745403060588,-3938.0753352,0.00021033,2]
[358724332,1745403060597,-455.4313092,0.00021034,2]
[358724333,1745403060607,-326.6904542,0.00021034,2]
[358724334,1745403060616,-1219.710104,0.000211,2]
[358724335,1745403060626,-500.0,0.00021128,2]
[358724336,1745403060636,-500.0,0.00021128,2]
[358724337,1745403060645,-2253.75,0.00021128,2]
[358724338,1745403060654,-517.89,0.00021128,2]
[358724339,1745403060664,-500.0,0.00021128,2]
[358724340,1745403060674,-2458.84,0.00021128,2]
[358724341,1745403060683,-4774.56,0.00021128,2]
[358724342,1745403060692,-5737.28,0.00021128,2]
[358724343,1745403060702,-151.0,0.00021128,2]
[358724344,1745403060711,-151.0,0.0002113,2]
[358724345,1745403060721,-151.0,0.0002113,2]
[358724346,1745403060730,-151.0,0.0002113,2]
[358724347,1745403060740,-151.0,0.0002113,2]
[358724348,1745403060749,-500.0,0.0002113,2]
[358724349,1745403060759,-500.0,0.0002113,2]
[358724350,1745403060768,-500.0,0.0002113,2]
[358724351,1745403060779,-500.0,0.0002113,2]
[358724352,1745403060789,-500.0,0.0002113,2]
[358724353,1745403060801,-500.0,0.0002113,2]
[358724354,1745403060811,-500.0,0.0002113,2]
[358724355,1745403060820,-500.0,0.0002113,2]
[358724356,1745403060830,-500.0,0.0002113,2]
[358724357,1745403060839,-651.56,0.0002113,2]
[358724358,1745403060848,-500.0,0.0002113,2]
[358724359,1745403060858,-500.0,0.0002113,2]
[358724360,1745403060867,-516.68326398,0.0002113,2]
[358724361,1745403060876,-500.0,0.0002113,2]
[358724362,1745403060887,-527.68712988,0.0002113,2]
[358724363,1745403060896,-500.0,0.0002113,2]
[358724364,1745403060905,-500.0,0.0002113,2]
[358724365,1745403060915,-566.38,0.0002113,2]
[358724366,1745403060924,-420.05693555,0.0002113,2]
[358724367,1745403060933,-500.0,0.0002113,2]
[358724368,1745403060942,-683.18,0.0002113,2]
[358724369,1745403060952,-500.0,0.0002113,2]
[358724370,1745403060962,-500.0,0.0002113,2]
[358724371,1745403060972,-151.0,0.0002113,2]
[358724372,1745403060981,-151.0,0.0002113,2]
[358724373,1745403060990,-151.0,0.0002113,2]
[358724374,1745403061000,-151.0,0.0002113,2]
[358724375,1745403061009,-151.0,0.0002113,2]
[358724376,1745403061019,-361.3287945,0.00021189,2]
[358724377,1745403061028,-361.3287945,0.00021189,2]
[358724378,1745403061041,-361.3287945,0.00021189,2]
[358724379,1745403061052,-361.3287945,0.00021189,2]
[358724380,1745403061062,-361.3287945,0.00021189,2]
[358724381,1745403061072,-618.4914434,0.00021189,2]
[358724382,1745403061082,-502.23776997,0.00021189,2]
[358724383,1745403061091,-500.0,0.00021189,2]
[358724384,1745403061101,-500.0,0.00021189,2]
[358724385,1745403061110,-151.0,0.000212,4]
[358724386,1745403061121,-2753.81,0.000212,2]
[358724387,1745403061130,-215.0738,0.00021287,2]
[358724388,1745403061140,-500.0,0.00021296,2]
[358724389,1745403061149,-509.72,0.00021297,2]
[358724390,1745403061158,-835.53,0.00021297,2]
[358724391,1745403061167,-2593.26,0.00021297,2]
[358724392,1745403061177,-500.0,0.00021297,2]
[358724393,1745403061186,-8207.28,0.00021297,2]
[358724394,1745403061195,-10366.63,0.00021297,2]
[358724395,1745403061205,-500.0,0.00021297,2]
[358724396,1745403061215,-500.0,0.00021297,2]
[358724397,1745403061227,-500.0,0.00021297,2]
[358724398,1745403061236,-4233.86,0.00021297,2]
[358724399,1745403061246,-500.0,0.00021297,2]
[358724400,1745403061256,-343.90498842,0.00021297,2]
[358724401,1745403061265,-751.13,0.00021297,2]
[358724402,1745403061275,-500.0,0.00021297,2]
[358724403,1745403061285,-500.0,0.00021297,2]
[358724404,1745403061294,-500.0,0.00021297,2]
[358724405,1745403061304,-745.29,0.00021297,2]
[358724406,1745403061313,-565.1,0.000213,2]
[358724407,1745403061322,-1088.04,0.000213,2]
[358724408,1745403061331,-1553.74,0.000213,2]
[358724409,1745403061341,-612.09,0.000213,2]
[358724410,1745403061351,-562.58,0.000213,2]
[358724411,1745403061360,-1393.65,0.000213,2]
[358724412,1745403061369,-500.0,0.000213,2]
[358724413,1745403061379,-500.0,0.000213,2]
[358724414,1745403061388,-783.91,0.000213,2]
[358724415,1745403061399,-598.03,0.000213,2]
[358724416,1745403061409,-537.24,0.000213,2]
[358724417,1745403061418,-822.07,0.000213,2]
[358724418,1745403061429,-500.0,0.000213,2]
[358724419,1745403061438,-524.38,0.000213,2]
[358724420,1745403061448,-500.0,0.000213,2]
[358724421,1745403061458,-3841.56,0.000213,2]
[358724422,1745403061468,-500.0,0.000213,2]
[358724423,1745403061480,-500.0,0.000213,2]
[358724424,1745403061489,-618.1,0.000213,2]
[358724425,1745403061499,-500.0,0.00021301,2]
[358724426,1745403061508,-500.0,0.00021301,2]
[358724427,1745403061518,-500.0,0.00021301,2]
[358724428,1745403061528,-500.0,0.00021301,2]
[358724429,1745403061537,-500.0,0.00021301,2]
[358724430,1745403061548,-500.0,0.00021301,2]
[358724431,1745403061558,-656.41,0.00021301,2]
[358724432,1745403061568,-734.03,0.00021301,2]
[358724433,1745403061577,-529.5017166,0.00021301,2]
[358724434,1745403061587,-496.54391527,0.00021301,2]
[358724435,1745403061596,-500.0,0.00021301,2]
[358724436,1745403061605,-337.87255595,0.00021301,2]
[358724437,1745403061614,-500.0,0.00021301,2]
[358724438,1745403061623,-682.6,0.00021301,2]
[358724439,1745403061633,-500.0,0.00021301,2]
[358724440,1745403061642,-500.0,0.00021301,2]
[358724441,1745403061651,-727.39,0.00021301,2]
[358724442,1745403061660,-686.67,0.00021301,2]
[358724443,1745403061670,-759.45,0.00021301,2]
[358724444,1745403061679,-797.43,0.00021301,2]
[358724445,1745403061688,-500.0,0.00021301,2]
[358724446,1745403061697,-220.76427403,0.00021301,2]
[358724447,1745403061707,-593.54,0.00021301,2]
[358724448,1745403061717,-246.31747123,0.00021301,2]
[358724449,1745403061728,-500.0,0.00021301,2]
[358724450,1745403061738,-500.0,0.00021301,2]
[358724451,1745403061747,-500.0,0.00021301,2]
[358724452,1745403061756,-303.56883262,0.00021301,2]
[358724453,1745403061766,-500.0,0.00021301,2]
[358724454,1745403061775,-500.0,0.00021301,2]
[358724455,1745403061785,-500.0,0.00021301,2]
[358724456,1745403061795,-500.0,0.00021301,2]
[358724457,1745403061804,-500.0,0.00021301,2]
[358724458,1745403061814,-500.0,0.00021301,2]
[358724459,1745403061823,-500.0,0.00021301,2]
[358724460,1745403061832,-624.72,0.00021301,2]
[358724461,1745403061842,-500.0,0.00021301,2]
[358724462,1745403061851,-500.0,0.00021301,2]
[358724463,1745403061861,-500.0,0.00021301,2]
[358724464,1745403061871,-500.0,0.00021301,2]
[358724465,1745403061880,-500.0,0.00021301,2]
[358724466,1745403061890,-500.0,0.00021301,2]
[358724467,1745403061899,-500.0,0.00021301,2]
[358724468,1745403061909,-500.0,0.00021301,2]
[358724469,1745403061919,-500.0,0.00021301,2]
[358724470,1745403061928,-253.54551438,0.00021301,2]
[358724471,1745403061938,-500.0,0.00021301,2]
[358724472,1745403061948,-500.0,0.00021301,2]
[358724473,1745403061958,-500.0,0.00021301,2]
[358724474,1745403061968,-500.0,0.00021301,2]
[358724475,1745403061979,-3144.14,0.00021301,2]
[358724476,1745403061989,-500.0,0.00021301,2]
[358724477,1745403061999,-500.0,0.00021301,2]
[358724478,1745403062009,-500.0,0.00021301,2]
[358724479,1745403062019,-500.0,0.00021301,2]
[358724480,1745403062028,-500.0,0.00021301,2]
[358724481,1745403062038,-500.0,0.00021301,2]
[358724482,1745403062048,-500.0,0.00021301,2]
[358724483,1745403062061,-2273.01,0.00021301,2]
[358724484,1745403062071,-500.0,0.00021301,2]
[358724485,1745403062080,-500.0,0.00021301,2]
[358724486,1745403062090,-500.0,0.00021301,2]
[358724487,1745403062102,-500.0,0.00021301,2]